[Event "Chinese Championship-B Women 2024"]
[Site "Liaocheng"]
[Date "2024.04.25"]
[Round "9.2"]
[White "Zhou, Shumeng"]
[Black "Jiang, Tianyu"]
[Result "0-1"]
[ECO "B44"]
[WhiteElo "1800"]
[BlackElo "1929"]
[Annotator "TA"]
[PlyCount "136"]
[EventDate "2024.04.24"]
[EventType "swiss"]
[EventCountry "CHN"]
[SourceTitle "playchess.com"]
[Source "ChessBase"]
[SourceQuality "1"]
[TimeControl "5400+30"]

{[%evp 87,136,-331,-12,-133,0,0,0,0,660,0,0,0,0,0,0,0,0,0,0,0,0,0,327,284,281,0,0,0,312,0,3,-1008,0,0,0,0,0,0,0,-6170,-212,-29989,-29990,-29990,-29991,-29993,-29994,-29996,-29950,-2174,-1716]} 1. e4 {[%emt 0:00:03]} c5 {[%emt 0:00:28]} 2. Nf3 {[%emt 0:00:06]} e6 {[%emt 0:00:48]} 3. c4 {[%emt 0:00:07]} Nc6 {[%emt 0:03:46]} 4. d4 {[%emt 0:00:05]} cxd4 {[%emt 0:01:12]} 5. Nxd4 {[%emt 0:00:03]} Nf6 {[%emt 0:00:19]} 6. Nc3 {[%emt 0:00:06]} Bb4 {[%emt 0:00:49]} 7. Nxc6 {[%emt 0:00:10]} bxc6 {[%emt 0:01:26]} 8. Bd3 {[%emt 0:00:12]} e5 {[%emt 0:01:38]} 9. O-O {[%emt 0:00:10]} O-O {[%emt 0:01:07]} 10. Qc2 {[%emt 0:04:34] Recently 10.h3 got a lot of attention.} Qe7 $146 {[%emt 0:14:20] B44: Sicilian: Taimanov: 5 Nb5.} ({Predecessor:} 10... Bc5 11. a3 d6 12. b4 Bd4 13. Rb1 Be6 14. Ne2 Bb6 15. h3 Nd7 16. Ng3 Qh4 17. Kh2 Bd4 18. Bb2 {½-½ Shankland,S (2720)-Dominguez Perez,L (2754) Saint Louis Blitz 2022 (1)}) 11. Na4 {[%emt 0:05:33]} d5 {[%emt 0:22:45]} 12. Bg5 {[%emt 0:05:58]} d4 {[%emt 0:09:24]} 13. a3 {[%emt 0:01:23]} Bd6 {[%emt 0:00:51]} 14. c5 {[%emt 0:02:56]} Bc7 {[%emt 0:00:43]} 15. b4 {[%emt 0:02:22]} Be6 {[%emt 0:10:19]} 16. Rae1 {[%emt 0:15:02]} h6 {[%emt 0:03:32]} 17. Bd2 {[%emt 0:02:28]} Rfb8 {[%emt 0:03:26]} 18. Rb1 {[%emt 0:08:14]} Qe8 {[%emt 0:08:21]} 19. Nb2 {[%emt 0:03:26]} Nh5 {[%emt 0:02:22]} 20. Nc4 {[%emt 0:11:06]} Nf4 {[%emt 0:04:37]} 21. Bxf4 {[%emt 0:00:17]} exf4 {[%emt 0:00:35]} 22. f3 {[%emt 0:00:14]} a5 {[%emt 0:02:08]} 23. Rb2 {[%emt 0:03:37]} axb4 {[%emt 0:02:51]} 24. axb4 {[%emt 0:00:01]} Bxc4 {[%emt 0:04:07]} 25. Qxc4 {[%emt 0:00:31]} Ra3 {[%emt 0:00:16]} 26. Rfb1 {[%emt 0:00:52]} Rc3 {[%emt 0:00:39]} 27. Qa6 {[%emt 0:01:20]} Be5 {[%emt 0:00:31]} 28. Ra2 {[%emt 0:08:23]} Qe6 {[%emt 0:00:36]} 29. Raa1 {[%emt 0:00:12]} Kh7 {[%emt 0:00:18]} 30. Ra3 {[%emt 0:08:22]} Qd7 {[%emt 0:00:40]} 31. Rab3 {[%emt 0:01:18]} Qe6 {[%emt 0:00:31]} 32. Ra3 {[%emt 0:00:01]} h5 {[%emt 0:00:29]} 33. Kf1 {[%emt 0:02:21]} Qd7 {[%emt 0:00:29]} 34. Rab3 {[%emt 0:00:55]} Qc7 {[%emt 0:00:19]} 35. Ke2 {[%emt 0:02:20]} Rb7 {[%emt 0:00:04]} 36. Rxc3 {[%emt 0:03:28]} dxc3 {[%emt 0:00:05]} 37. Qc4 {[%emt 0:00:01]} Qd8 {[%emt 0:00:27]} 38. Rd1 {[%emt 0:03:04]} Rd7 {[%emt 0:00:07]} 39. b5 {[%emt 0:01:17]} Qh4 {[%emt 0:01:52]} 40. bxc6 {[%emt 0:01:00]} Bd4 {[%emt 0:00:38]} 41. Rf1 {[%emt 0:00:46]} Qxh2 {[%emt 0:00:11]} 42. e5+ {[%emt 0:02:34]} g6 {[%emt 0:00:44]} 43. Kd1 {[%emt 0:01:15]} Qxg2 {[%emt 0:00:13]} 44. Be2 {[%emt 0:00:01]} (44. Bxg6+ Qxg6 (44... fxg6 45. Qe2 c2+ 46. Kd2 Be3+)) 44... c2+ $2 {[%emt 0:00:49]} (44... Bxe5+ $2 45. cxd7 c2+ 46. Kxc2 $18) (44... Ra7 $1 $19 45. c7 c2+ (45... Bxe5 $2 46. c8=Q $18) 46. Qxc2 Rxc7) 45. Kxc2 {[%emt 0:00:42]} (45. Kd2 $1 $11 Be3+ (45... Bxc5+ 46. cxd7 Bb6 47. Qxf7+ Kh6 48. Qxf4+ Qg5 49. Qxg5+ Kxg5 50. f4+ Kf5 51. Bd3+ Ke6 52. Bxg6 $18) 46. Kxc2) 45... Ra7 {[%emt 0:00:28]} ({Black should try} 45... Rc7 $17 46. Rb1 Bxe5) 46. Rd1 $1 $11 {[%emt 0:02:21]} Bxe5 {[%emt 0:00:36]} 47. Rd7 {[%emt 0:00:20]} Ra3 $2 {[%emt 0:00:30][%mdl 8192]} (47... Ra2+ $11 48. Qxa2 Qxe2+ 49. Rd2 Qxf3) 48. Qxf7+ $2 {[%emt 0:00:42]} (48. c7 $18 Rc3+ 49. Qxc3 Bxc3 50. c8=Q (50. c8=R Qxe2+ 51. Kxc3 Qxf3+ 52. Kb4 Qe4+ 53. Ka5 Qe1+ 54. Ka6 Qe6+ 55. c6 f3 $19) 50... Qxe2+ 51. Kxc3 Qxf3+ 52. Rd3 (52. Kb4 Qe4+ 53. Ka5 Qe1+ 54. Kb6 Qb4+ 55. Ka7 Qa3+ 56. Kb8 Qb2+ 57. Qb7 Qh8+ 58. Ka7 Qa1+ 59. Qa6 Qc3 $18)) 48... Kh6 $11 {[%emt 0:00:03]} 49. Qf8+ {[%emt 0:00:41]} Kg5 {[%emt 0:00:04]} 50. Qe7+ {[%emt 0:00:05]} Bf6 {[%emt 0:01:18]} 51. Rd5+ {[%emt 0:00:22]} Kh6 {[%emt 0:00:04]} 52. Qf8+ {[%emt 0:00:23]} (52. Qxf6 Qxe2+ 53. Rd2 Ra2+ (53... Qxf3 54. Qf8+ Kg5 55. Qe7+ Kg4 56. Qe6+ Kh4 57. Rh2+ Kg5 58. Qe5+ Kh6 59. Qh8+ Kg5 60. Qe5+ Kh6 61. Qh8+ Kg5 62. Qe5+ $11) 54. Kb3 Rxd2 55. Qxf4+ Kg7 56. Qc7+ Kf6 57. Qf4+ Ke6 58. Qe4+ Qxe4 59. fxe4 h4 60. c7 Kd7 61. Kc3 Rg2 62. Kd3 h3 (62... Kxc7 63. e5 h3 64. e6 h2 65. e7 h1=Q 66. e8=Q Qd1+ 67. Ke4 Qe1+ 68. Kd4 Rd2+ 69. Kc3 Qc1+ 70. Kb4 Rb2+ 71. Ka5 Qxc5+ 72. Ka6 Qb6#) 63. e5 Kxc7 64. e6 h2 65. e7 h1=Q (65... h1=R 66. e8=Q $11) (65... Kd7 66. e8=R Kxe8 67. c6 h1=Q 68. c7 Qd1+ 69. Ke3 Re2+ 70. Kf4 Qd4+ 71. Kg3 Qe3+ 72. Kh4 Qf4+ 73. Kh3 Rh2#) (65... Rg3+ 66. Kd4 h1=Q 67. e8=Q Qd1+ 68. Ke5 Re3+ 69. Kf4 Qf3+ 70. Kg5 Rxe8 71. Kxg6 Rg8+ 72. Kh7 Qf7+ 73. Kh6 Qg6#) 66. e8=Q Qf1+ 67. Ke4 Re2+ 68. Kd3 Rxe8+ 69. Kd4 Qf4+ (69... g5 70. c6 Qf4+ 71. Kd3 Re3+ 72. Kd2 Qf2+ 73. Kd1 Re1#) 70. Kc3 Re3+ 71. Kc2 Qf2+ 72. Kd1 Re1#) 52... Bg7 {[%emt 0:00:05]} 53. Qxf4+ {[%emt 0:00:12]} Kh7 {[%emt 0:00:07]} 54. Qe4 {[%emt 0:02:15]} Rc3+ $2 {[%emt 0:00:52][%mdl 8192]} (54... Ra2+ $11 {and Black stays safe.} 55. Kb3 (55. Kd3 Ra3+ 56. Kc2 Qh1 $11) 55... Rb2+ (55... Rxe2 56. Rxh5+ Bh6 57. Rxh6+ Kxh6 58. Qh4+ Kg7 59. Qd4+ Kh7 60. Qh4+ Kg7 61. Qd4+ Kf8 62. Qd6+ Kg7 63. Qd4+ $11) (55... Qxe2 $2 56. Qxe2 Rxe2 57. c7 $18) 56. Kc4 Rxe2 57. Rxh5+ Bh6 58. Rxh6+ Kxh6 59. Qh4+ Kg7 60. Qd4+ Kh7 (60... Kf7 61. c7 $11)) 55. Kd2 $18 {[%emt 0:00:21]} Qh1 {[%emt 0:01:26]} 56. Bd1 {[%emt 0:00:31]} Qh2+ {[%emt 0:00:34]} 57. Be2 {[%emt 0:00:05]} Qh1 {[%emt 0:00:18]} 58. Bd1 $2 {[%emt 0:00:24]} (58. Bd3 $1 $18 Qh2+ 59. Qe2 Qf4+ 60. Qe3 Qh2+ 61. Kd1 Qh1+ 62. Ke2 Qh2+ 63. Qf2) 58... Ra3 {[%emt 0:00:29]} 59. Kc1 $2 {[%emt 0:01:03][%mdl 8192] [#]} (59. Rg5 $11 Ra2+ 60. Bc2 Qh2+ 61. Ke3 Bd4+ (61... Rxc2 62. Qxg6+ Kh8 63. Qxg7#) (61... Qxc2 $2 62. Qxc2 Rxc2 63. c7 $18) 62. Kxd4 Qd2+ 63. Qd3 Qxg5 64. c7 Qf6+ 65. Kc4 (65. Kd5 Ra8 $11) 65... Qe6+ 66. Kb4 Rb2+ 67. Bb3) 59... Ra1+ $2 {[%emt 0:00:22]} (59... Qg2 $2 60. Rxh5+ Bh6+ 61. Rxh6+ Kxh6 62. Qh4+ Kg7 63. Qd4+ Kh7 64. c7 Qg5+ 65. Kb2 $18) ({Better is} 59... Qh2 $1 $19 {[%csl Gg7][%cal Rh2b2]} 60. Be2 Ra2) 60. Kc2 $11 {[%emt 0:00:09]} Qh2+ {[%emt 0:00:36]} 61. Be2 {[%emt 0:00:05]} Ra2+ {[%emt 0:00:37]} 62. Kd3 {[%emt 0:00:03]} Qh1 {[%emt 0:00:30]} 63. Ke3 $2 {[%emt 0:01:05][%mdl 8192]} (63. c7 $11 Qb1+ (63... Ra3+ 64. Kc4 $16) 64. Ke3 Qg1+ 65. Kd3 Qb1+ 66. Ke3 Qg1+ 67. Kd3 Qb1+) 63... Ra3+ $2 {[%emt 0:00:33]} (63... Qg1+ 64. Kd3 Ra3+ 65. Kc4 Qc1+ (65... Ra4+ $2 66. Kb5 $19) 66. Kb5 Rb3+ (66... Qb2+ $2 67. Qb4 $19) 67. Qb4 Rxb4+ 68. Kxb4 Qb2+ (68... Qb1+ $2 69. Ka5 $19) 69. Ka5 Bc3+ (69... Qxe2 $2 70. c7 $19) 70. Ka6 Qa2+ (70... Qxe2+ $2 71. Kb7 $19) 71. Kb6 Ba5+ (71... Qxd5 {is a self mate.} 72. c7) 72. Ka6 Bd8+ (72... Qxe2+ $2 73. Ka7 $19) 73. Kb5 Qb3+ (73... Qxd5 $2 74. Bc4 $19) 74. Ka6 Qxd5 75. c7 Bxc7 76. Kb5 h4 77. Kb4 Qd2+ 78. Kc4 Qxe2+ 79. Kd4 h3 (79... Qxf3 80. Kc4 h3 81. Kb5 h2 82. Kc4 h1=Q 83. c6 Qxc6+ 84. Kb4 Qb1+ 85. Ka3 Bd6#) 80. Kd5 h2 (80... Qxf3+ 81. Kc4 h2 82. Kb4 h1=Q 83. c6 Qh4+ 84. Kb5 Qe2+ 85. Kc5 Qeh5#) 81. Kc6 Qe5 (81... h1=B {gets mated.} 82. Kxc7 Qe6 83. c6 Bxf3 84. Kb6 Qxc6+ 85. Ka5 Qc5+ 86. Ka6 Qb4 87. Ka7 Qb7#) 82. Kd7 h1=Q 83. Kc8 Qxf3 (83... Qxc5 $2 84. f4 Bb6+ 85. Kd7 Qhc6#) 84. c6 Qb3 85. Kd7 Qh3#) 64. Rd3 $2 {[%emt 0:00:27] [#]} (64. Kf2 $19 Qh2+ 65. Kf1 Ra1+ 66. Rd1 Qh1+ 67. Kf2 Rxd1 68. Bxd1) 64... Qg1+ $1 {[%emt 0:00:22]} 65. Kf4 {[%emt 0:00:28]} Ra8 {[%emt 0:00:12]} ({Worse is} 65... Qxc5 66. Rxa3 Qxa3 67. Kg3 $11) 66. Qe7 {[%emt 0:00:58]} Ra4+ {[%emt 0:00:05]} 67. Qe4 {[%emt 0:00:19]} Rxe4+ {[%emt 0:00:04]} 68. Kxe4 {[%emt 0:00:04]} Qxc5 {[%emt 0:00:07]} 0-1

[Event "Chinese Championship-B Women 2024"]
[Site "Liaocheng"]
[Date "2024.04.25"]
[Round "9.3"]
[White "Shao, Qiyu"]
[Black "Yang, Yijing"]
[Result "0-1"]
[ECO "D04"]
[WhiteElo "1764"]
[BlackElo "2040"]
[Annotator "NA RC"]
[PlyCount "116"]
[EventDate "2024.04.24"]
[EventType "swiss"]
[EventCountry "CHN"]
[SourceTitle "playchess.com"]
[Source "ChessBase"]
[SourceQuality "1"]
[TimeControl "5400+30"]

1. d4 {[%emt 0:00:17]} Nf6 {[%emt 0:01:05]} 2. Nf3 {[%emt 0:00:06]} c5 {[%emt 0:03:20]} 3. e3 {[%emt 0:01:46]} d5 {[%emt 0:03:22]} 4. b3 {[%emt 0:01:10]} cxd4 {[%emt 0:05:13]} 5. exd4 {[%emt 0:00:11]} Nc6 {[%emt 0:00:18]} 6. Bb2 {[%emt 0:06:34] D04: Colle System.} Bf5 {[%emt 0:05:19]} 7. Nh4 {[%emt 0:03:40]} Be4 {[%emt 0:01:43]} 8. Nd2 {[%emt 0:04:05]} e6 {[%emt 0:00:48]} 9. f3 {[%emt 0:10:23]} (9. c3 $11 {might be stronger.}) 9... Bg6 {[%emt 0:21:06]} 10. Bb5 {[%emt 0:02:18]} Bd6 {[%emt 0:00:57]} 11. Qe2 {[%emt 0:01:29]} Rc8 {[%emt 0:17:25]} ({Black should try} 11... Bxc2 $17 12. Rc1 Bg6 13. Rxc6 bxc6 14. Bxc6+ Nd7 15. Nxg6 hxg6 16. Bxa8 Qxa8) 12. Nxg6 {[%emt 0:02:27]} hxg6 {[%emt 0:00:07]} 13. O-O-O {[%emt 0:00:06]} Qa5 {[%emt 0:02:07]} (13... Bxh2 $2 {is the wrong capture.} 14. Bxc6+ Rxc6 15. g3 $18) 14. a4 {[%emt 0:07:22]} (14. Kb1 $17) 14... Ke7 {[%emt 0:05:29]} (14... Bxh2 $2 {perishes.} 15. g3 $18) ({But not} 14... Rxh2 15. Rxh2 Bxh2 16. Rh1 $17) (14... O-O $19 {is more deadly.} 15. Kb1 a6 16. Bxc6 Rxc6) 15. Bxc6 {[%emt 0:56:06]} (15. Kb1 $142) 15... Rxc6 {[%emt 0:00:07]} 16. Nf1 {[%emt 0:00:00]} (16. Kb1 $17 {keeps fighting.}) 16... Rhc8 {[%emt 0:00:44]} 17. Ne3 {[%emt 0:00:00] [#]} Bf4 {[%emt 0:01:50]} (17... a6 $1 $19 18. Kb1 b5 19. axb5 axb5) 18. Rd3 {[%emt 0:00:00]} (18. Kb1 $17) 18... Rxc2+ 19. Qxc2 {[%emt 0:00:00]} Rxc2+ 20. Kxc2 {[%emt 0:00:00]} Bxh2 {[%emt 0:09:47]} 21. Ba3+ {[%emt 0:00:00]} Kd7 {[%emt 0:02:03]} 22. Rc3 {[%emt 0:00:00]} Bg3 {[%emt 0:04:19]} 23. Kb2 {[%emt 0:00:00]} Bf2 {[%emt 0:02:03]} 24. Nc2 {[%emt 0:00:00]} Qd8 {[%emt 0:01:23]} 25. g4 {[%emt 0:00:00]} Ne8 {[%emt 0:01:02]} 26. Rh2 {[%emt 0:00:00]} Bg3 {[%emt 0:00:23]} 27. Rh3 {[%emt 0:00:00]} Bc7 {[%emt 0:03:55]} 28. Rh8 {[%emt 0:00:00]} Bb6 {[%emt 0:02:22]} 29. b4 {[%emt 0:00:00]} Qf6 {[%emt 0:00:47]} 30. b5 {[%emt 0:02:49]} Bxd4 {[%emt 0:01:51]} 31. Nxd4 {[%emt 0:00:01]} Qxd4 {[%emt 0:00:01]} 32. Rf8 {[%emt 0:00:02]} Qf6 {[%emt 0:02:00]} (32... Qxa4 $2 {loses.} 33. Rxf7+ Kd8 34. Rxb7 $18) 33. Kc2 {[%emt 0:01:19]} Qf4 {[%emt 0:00:28]} 34. Kb3 {[%emt 0:02:06]} d4 {[%emt 0:01:06]} 35. Bc1 {[%emt 0:01:59]} Qf6 {[%emt 0:00:29]} 36. Rd3 {[%emt 0:00:11]} e5 {[%emt 0:00:09]} 37. Ba3 {[%emt 0:01:29]} Qe6+ {[%emt 0:00:18]} 38. Kb2 {[%emt 0:00:07]} Qc4 {[%emt 0:00:13]} 39. Rb3 {[%emt 0:00:40]} Nd6 {[%emt 0:03:36]} ({Worse is} 39... Qxa4 40. Rxf7+ Kd8 (40... Kc8 $2 41. Rb4 $18) 41. Rxb7 $11) 40. b6 {[%emt 0:01:13]} (40. Bxd6 $142 Kxd6 41. Rb8) 40... Qe2+ {[%emt 0:00:31]} (40... Qxa4 41. Bxd6 Kxd6 42. Rxf7 $17) 41. Ka1 {[%emt 0:00:12]} Qe1+ {[%emt 0:00:15]} 42. Ka2 {[%emt 0:00:06]} Qe2+ $11 {[%emt 0:00:12]} ({Better is} 42... a5 $19 43. Bxd6 Qe2+ (43... Kxd6 $2 44. Rb8 $19) 44. Ka3 Kxd6 45. Rd8+ Ke6) 43. Ka1 {[%emt 0:00:33]} Qd1+ {[%emt 0:00:09]} 44. Ka2 {[%emt 0:00:09]} Qc2+ {[%emt 0:00:16]} 45. Rb2 {[%emt 0:01:05]} Qc4+ {[%emt 0:00:24]} 46. Rb3 {[%emt 0:00:25]} a6 {[%emt 0:00:42]} 47. Bxd6 Kxd6 {[%emt 0:00:01]} 48. Ka3 {[%emt 0:00:42]} Qc1+ {[%emt 0:00:21]} 49. Ka2 {[%emt 0:00:05]} Ke6 {[%emt 0:01:28]} 50. Re8+ {[%emt 0:01:04]} Kf6 {[%emt 0:00:08]} 51. Rd8 {[%emt 0:00:11]} Qc6 {[%emt 0:00:38]} 52. Ka3 {[%emt 0:00:19]} Ke7 {[%emt 0:00:14]} 53. Rh8 {[%emt 0:00:30]} Qc1+ {[%emt 0:00:14]} 54. Rb2 {[%emt 0:00:24]} d3 {[%emt 0:00:53]} 55. Rhh2 {[%emt 0:00:10]} f5 {[%emt 0:00:08]} 56. Rhd2 {[%emt 0:01:40]} e4 {[%emt 0:00:07]} 57. g5 {[%emt 0:00:13]} Qc3+ {[%emt 0:00:38]} 58. Ka2 {[%emt 0:00:15]} e3 {[%emt 0:00:14]} 0-1

[Event "Chinese Championship-B Women 2024"]
[Site "Liaocheng"]
[Date "2024.04.25"]
[Round "9.4"]
[White "Hu, Yu A."]
[Black "Men, Jiayi"]
[Result "1/2-1/2"]
[ECO "A84"]
[WhiteElo "2148"]
[BlackElo "1845"]
[Annotator "TA"]
[PlyCount "48"]
[EventDate "2024.04.24"]
[EventType "swiss"]
[EventCountry "CHN"]
[SourceTitle "playchess.com"]
[Source "ChessBase"]
[SourceQuality "1"]
[TimeControl "5400+30"]

{[%evp 9,48,47,51,39,60,29,49,31,27,27,77,44,35,41,53,50,63,44,86,25,36,33,26,23,79,24,69,-104,-109,-178,-182,-179,0,-119,0,-143,0,-126,0,-162,0]} 1. Nf3 {[%emt 0:00:07]} d5 {[%emt 0:00:32]} 2. c4 {[%emt 0:00:10]} e6 {[%emt 0:00:09]} 3. d4 {[%emt 0:02:38]} c6 {[%emt 0:00:59]} 4. Nc3 {[%emt 0:04:52]} f5 {[%emt 0:00:56]} 5. Bg5 {[%emt 0:05:13]} Be7 {[%emt 0:01:16]} 6. h4 {[%emt 0:04:00]} Nf6 {[%emt 0:04:17]} 7. Qc2 {[%emt 0:05:57]} O-O {[%emt 0:04:02]} 8. Bxf6 {[%emt 0:07:01] White is slightly better.} Bxf6 {[%emt 0:01:19]} 9. e3 {[%emt 0:00:13]} g6 {[%emt 0:12:55]} (9... Qe7 $11 {remains equal.}) 10. Bd3 {[%emt 0:06:17]} Na6 {[%emt 0:05:42]} 11. a3 {[%emt 0:01:03] Against Nb4} Nc7 {[%emt 0:02:40]} 12. O-O-O {[%emt 0:12:32]} dxc4 {[%emt 0:13:33]} 13. Bxc4 {[%emt 0:00:12] Hoping for h5.} b5 {[%emt 0:00:26] [#]} 14. Ba2 {[%emt 0:06:43] White is more active.} ({Better is} 14. Bb3 $1 $16) 14... b4 {[%emt 0:08:43]} 15. axb4 {[%emt 0:04:40] aiming for h5.} Nd5 {[%emt 0:03:24]} 16. Bc4 {[%emt 0:27:10]} Qb6 {[%emt 0:12:38]} (16... a5 $11) 17. e4 {[%emt 0:01:22]} ({White should play} 17. Na4 $16 Qxb4 18. Nc5) 17... fxe4 {[%emt 0:09:27]} (17... Qxb4 $6 18. Na2 (18. Nxd5 cxd5 19. exd5 Bb7 $11) 18... Qb6 19. exd5 $16) 18. Qxe4 {[%emt 0:00:24] [#]} (18. Nxe4 $14 {was the only good move.} Nxb4 19. Qb3) 18... Qxb4 $17 {[%emt 0:01:15]} 19. Qd3 {[%emt 0:03:57]} (19. Qe2 $17) 19... Nf4 $36 {[%emt 0:01:33][%mdl 2048] Black has strong initiative.} (19... Rb8 20. Rd2 $17) 20. Qe4 {[%emt 0:00:22]} Nd5 {[%emt 0:00:28]} (20... Nxg2 21. Bf1 $14 (21. Bxe6+ Bxe6 22. Qxe6+ Kh8 $17)) (20... Qxc4 $19 21. Qxf4 e5 22. Nxe5 Qa6) 21. Qd3 $17 {[%emt 0:00:34]} Nf4 {[%emt 0:00:05]} 22. Qe4 {[%emt 0:00:19][%csl LRc6,LRf4]} Nd5 {[%emt 0:00:02]} (22... Nxg2 23. Bf1 $11 (23. Bxe6+ Bxe6 24. Qxe6+ Kh8 $11)) 23. Qd3 {[%emt 0:00:08]} Nf4 {[%emt 0:00:03][%csl LRd3,LRg2]} 24. Qe4 {[%emt 0:06:36][%csl LRc6,LRf4]} Nd5 $2 {Weighted Error Value: White=0.29 (precise) /Black=0.53.  Missed win:     	---       	Black=1      Mistake:       	White=4     	Black=3      Inaccurate:     	White=2     	Black=1      OK:         	White=7     	Black=6      Best:        	White=2     	Black=1} ({And not} 24... Nxg2 25. Bf1 $14 (25. Bxe6+ Bxe6 26. Qxe6+ Kh8 $11)) (24... Qxc4 $19 25. Qxf4 e5) 1/2-1/2

[Event "Chinese Championship-B Women 2024"]
[Site "Liaocheng"]
[Date "2024.04.25"]
[Round "9.5"]
[White "Ren, Xiaoyi"]
[Black "Wu, Shuang(Hlj)"]
[Result "1-0"]
[ECO "D12"]
[WhiteElo "2075"]
[BlackElo "1701"]
[Annotator "NA RC"]
[PlyCount "107"]
[EventDate "2024.04.24"]
[EventType "swiss"]
[EventCountry "CHN"]
[SourceTitle "playchess.com"]
[Source "ChessBase"]
[SourceQuality "1"]
[TimeControl "5400+30"]

1. d4 {[%emt 0:08:04]} Nf6 {[%emt 0:00:07]} 2. c4 {[%emt 0:00:04]} c6 {[%emt 0:00:04]} 3. Nf3 {[%emt 0:00:16]} d5 {[%emt 0:00:06]} 4. e3 {[%emt 0:00:12]} Bf5 {[%emt 0:02:03]} 5. Nc3 {[%emt 0:01:15]} e6 {[%emt 0:00:27]} 6. Nh4 {[%emt 0:00:28]} Bg6 {[%emt 0:00:36]} 7. Nxg6 {[%emt 0:00:06]} hxg6 {[%emt 0:00:05]} 8. Bd2 {[%emt 0:00:35] D12: Slav Defence: 3 Nf3 Nf6 4 e3 Bf5.} Nbd7 {[%emt 0:03:21]} 9. f4 {[%emt 0:00:58] 9.Qc2 is setting a new trend.} Bb4 $146 {[%emt 0:08:58]} ({Predecessor:} 9... Qb6 10. Qb3 Qxb3 11. axb3 Bd6 12. Bd3 a6 13. Ke2 Ke7 14. c5 Bc7 {0-1 Litchfield,F (2197)-Yanchenko,R (2466) Titled Tuesday intern op 16th May Late blitz 2023 (1)}) 10. Bd3 {[%emt 0:01:12]} dxc4 {[%emt 0:07:41]} 11. Bxc4 {[%emt 0:00:49]} Bxc3 {[%emt 0:00:35]} 12. Bxc3 {[%emt 0:00:20]} Ne4 {[%emt 0:01:23]} 13. Qg4 {[%emt 0:03:21]} Qh4+ {[%emt 0:04:00]} ({Black should play} 13... Ndf6 $17 14. Qf3 O-O) 14. Qxh4 {[%emt 0:00:41]} Rxh4 {[%emt 0:00:06]} 15. Ke2 {[%emt 0:01:47]} Nxc3+ {[%emt 0:13:15]} 16. bxc3 {[%emt 0:00:12]} Ke7 {[%emt 0:01:38]} 17. h3 {[%emt 0:01:32]} Rc8 {[%emt 0:01:33]} 18. Rab1 {[%emt 0:02:38]} Nb6 {[%emt 0:01:27]} 19. Bd3 {[%emt 0:00:28]} Rc7 {[%emt 0:05:35]} 20. Rb3 {[%emt 0:02:05]} Nc8 {[%emt 0:09:40]} (20... Rh5 $11) 21. e4 {[%emt 0:03:36]} (21. c4 $14) 21... b6 {[%emt 0:02:40]} ({Of course not} 21... Rxf4 $6 22. g3 Rf6 23. e5 $16) 22. Ke3 {[%emt 0:08:32]} c5 {[%emt 0:02:42]} 23. Be2 {[%emt 0:02:17]} Rh8 {[%emt 0:01:51]} 24. a4 {[%emt 0:02:32]} Nd6 {[%emt 0:05:13]} 25. a5 {[%emt 0:02:35]} cxd4+ {[%emt 0:00:52]} 26. cxd4 {[%emt 0:00:11]} bxa5 {[%emt 0:00:12]} 27. Ra1 {[%emt 0:01:31]} Rhc8 {[%emt 0:01:42]} 28. Bd3 {[%emt 0:02:17]} (28. Rxa5 Rc3+ 29. Rxc3 Rxc3+ 30. Kd2 Nxe4+ 31. Kd1 Rc7 $11) 28... Nc4+ {[%emt 0:03:03]} 29. Ke2 {[%emt 0:03:31]} Kd8 {[%emt 0:05:02]} 30. Ra4 {[%emt 0:00:57]} Kd7 {[%emt 0:04:18]} 31. h4 {[%emt 0:01:19]} Kd8 {[%emt 0:00:49]} 32. g4 {[%emt 0:02:09]} Kd7 {[%emt 0:00:31]} 33. Rc3 {[%emt 0:03:42]} Nd6 {[%emt 0:02:17]} 34. Rxc7+ {[%emt 0:00:12]} Kxc7 {[%emt 0:03:39]} 35. Rxa5 {[%emt 0:00:40]} Kb8 {[%emt 0:00:19]} 36. Ra6 {[%emt 0:03:07]} Ne8 {[%emt 0:00:58]} 37. f5 {[%emt 0:03:18]} gxf5 {[%emt 0:00:37]} 38. exf5 {[%emt 0:00:04]} Nc7 {[%emt 0:00:31]} 39. Rd6 {[%emt 0:01:01]} a5 {[%emt 0:00:48]} 40. h5 {[%emt 0:00:37]} Ka7 {[%emt 0:02:41]} 41. Rd7 {[%emt 0:02:49]} Kb6 {[%emt 0:01:24]} 42. Rxf7 {[%emt 0:00:05]} a4 {[%emt 0:01:41]} 43. Kd2 {[%emt 0:06:38]} Nb5 {[%emt 0:02:24]} 44. Bxb5 {[%emt 0:00:08]} a3 {[%emt 0:00:46]} 45. fxe6 {[%emt 0:01:45]} Kxb5 {[%emt 0:01:27]} 46. Ra7 {[%emt 0:02:10]} Kb4 {[%emt 0:00:46]} 47. e7 {[%emt 0:00:46]} Kb3 {[%emt 0:01:09]} 48. d5 {[%emt 0:00:09]} a2 {[%emt 0:00:37]} 49. d6 {[%emt 0:00:17]} Rc2+ {[%emt 0:00:05]} 50. Ke3 {[%emt 0:00:53]} Rc1 {[%emt 0:00:25]} 51. Kf2 {[%emt 0:00:22]} Rc2+ {[%emt 0:00:13]} 52. Kg3 {[%emt 0:00:04]} Re2 {[%emt 0:00:13]} 53. Rxa2 {[%emt 0:00:43]} Kxa2 {[%emt 0:00:13]} 54. d7 {[%emt 0:00:03]} 1-0

[Event "Chinese Championship-B Women 2024"]
[Site "Liaocheng"]
[Date "2024.04.25"]
[Round "9.6"]
[White "Du, Yuxin"]
[Black "Pi, Aiying"]
[Result "1-0"]
[ECO "B40"]
[WhiteElo "1960"]
[BlackElo "1617"]
[Annotator "NA RC"]
[PlyCount "55"]
[EventDate "2024.04.24"]
[EventType "swiss"]
[EventCountry "CHN"]
[SourceTitle "playchess.com"]
[Source "ChessBase"]
[SourceQuality "1"]
[TimeControl "5400+30"]

{[%evp 17,55,17,32767,12,18,20,32767,-7,-18,-7,-5,-4,0,32767,32767,32767,32767,32767,32767,32767,32767,32767,32767,32767,32767,32767,32767,32767,-458,-564,-633,-697,-20,-22,112,114,566,32767,938,989]} 1. e4 {[%emt 0:00:03]} c5 {[%emt 0:00:18]} 2. Nf3 {[%emt 0:00:07]} e6 {[%emt 0:00:33]} 3. g3 {[%emt 0:00:19]} d5 {[%emt 0:00:22]} 4. exd5 {[%emt 0:00:13]} exd5 {[%emt 0:00:03]} 5. d4 {[%emt 0:00:06]} Nf6 {[%emt 0:00:04]} 6. Bg2 {[%emt 0:04:37] B40: Sicilian: 2...e6, Unusual lines.} Be7 {[%emt 0:03:55]} 7. O-O {[%emt 0:02:15]} O-O {[%emt 0:03:20]} 8. Be3 {[%emt 1:26:50]} cxd4 {[%emt 0:10:04]} 9. Nxd4 {[%emt 0:00:00]} Bg4 {[%emt 0:04:00]} 10. Qd3 {[%emt 0:00:00]} Qd7 {[%emt 0:04:26]} 11. Nc3 {[%emt 0:00:00]} Nc6 {[%emt 0:05:56]} 12. Bf4 {[%emt 0:00:00]} Rfd8 {[%emt 0:12:49]} 13. Rfe1 {[%emt 0:00:00]} Rac8 {[%emt 0:08:26]} 14. Nce2 {[%emt 0:00:00]} Nb4 {[%emt 0:10:43]} 15. Qb3 {[%emt 0:00:00]} Bc5 {[%emt 0:09:18]} 16. a3 {[%emt 0:00:00]} Nc6 {[%emt 0:02:40]} 17. Nxc6 {[%emt 0:00:00]} bxc6 {[%emt 0:04:06]} 18. Qc3 {[%emt 0:00:00]} Bb6 {[%emt 0:01:16]} 19. Bg5 {[%emt 0:00:00]} Qf5 {[%emt 0:01:26]} 20. Bf4 {[%emt 0:00:23]} Ne4 {[%emt 0:10:10]} 21. Bxe4 {[%emt 0:00:06]} dxe4 {[%emt 0:03:35]} 22. Be3 {[%emt 0:04:26]} Bf3 {[%emt 0:02:04]} 23. Bxb6 {[%emt 0:01:29]} axb6 {[%emt 0:00:49]} 24. Qe3 {[%emt 0:00:40]} Rd6 $2 {[%emt 0:01:22]} (24... g5 $19 25. Rad1 h6 26. Qxe4 Qxe4 (26... Bxe4 $2 27. Nd4 $19)) 25. Rad1 $1 {[%emt 0:00:51]} ({Don't go for} 25. Nd4 $2 Rxd4 $19) 25... Rf6 {[%emt 0:00:34]} (25... Rxd1 $11 26. Rxd1 Qf6) 26. Nd4 $1 {[%emt 0:00:10]} (26. Qxb6 $2 {too greedy.} g5 27. Qe3 h6 $19) 26... Qh3 $2 {[%emt 0:00:12]} (26... Qc5 $16 {is a better chance.}) 27. Nxf3 {[%emt 0:00:11]} Rxf3 $18 {[%emt 0:00:51]} 28. Qxe4 {[%emt 0:00:07]} 1-0